bitfinex/quotes_BTCUSD_20250314
["timestamp","ask_amount","ask_price","bid_price","bid_amount"]
[1741958299435,0.239206,83610.0,83607.0,0.239214]
[1741958301096,0.239203,83611.0,83608.0,0.23921]
[1741958301459,0.3,83617.0,83609.0,0.01196]
[1741958301635,0.3,83615.0,83613.0,0.239195]
[1741958301812,0.30945773,83616.0,83613.0,0.239195]
[1741958302019,0.30945773,83616.0,83611.0,0.251157]
[1741958302218,0.3,83614.0,83611.0,0.239197]
[1741958302514,0.239208,83609.0,83608.0,0.001]
[1741958302764,0.251168,83609.0,83608.0,0.001]
[1741958303102,0.239204,83611.0,83608.0,0.240211]
[1741958303300,0.239205,83610.0,83608.0,0.001]
[1741958303584,0.239208,83609.0,83607.0,0.239214]
[1741958303784,0.31876272,83614.0,83610.0,0.01196]
[1741958304076,0.31876272,83614.0,83613.0,0.239197]
[1741958304454,0.31876272,83614.0,83613.0,0.251156]
[1741958304659,0.239208,83609.0,83608.0,0.001]
[1741958304857,0.239215,83607.0,83605.0,0.239219]
[1741958305202,0.239223,83604.0,83601.0,0.251192]
[1741958305497,0.01196,83607.0,83601.0,0.011961]
[1741958305660,0.01196,83607.0,83603.0,0.239223]
[1741958305661,0.3,83606.0,83603.0,0.239223]
[1741958305840,0.3,83606.0,83605.0,0.23922]
[1741958306041,0.3,83606.0,83605.0,0.251181]
[1741958306245,0.31876333,83606.0,83605.0,0.251181]
[1741958306778,0.01876333,83606.0,83605.0,0.251181]
[1741958307414,0.539228,83602.0,83601.0,0.003]
[1741958308008,0.539228,83602.0,83598.0,0.2394034]
[1741958308009,0.539232,83601.0,83598.0,0.2394034]
[1741958308165,0.239234,83600.0,83598.0,0.2394034]
[1741958308365,0.239237,83599.0,83598.0,0.0001694]
[1741958308588,0.251198,83599.0,83598.0,0.0001694]
[1741958308791,0.56573885,83599.0,83593.0,0.38305854]
[1741958309007,0.251213,83594.0,83593.0,0.36539734]
[1741958309951,0.251213,83594.0,83593.0,0.36639734]
[1741958310274,0.251213,83594.0,83593.0,0.001]
[1741958310475,0.26997777,83594.0,83593.0,0.001]
[1741958310914,0.56997777,83594.0,83593.0,0.001]
[1741958311333,0.3,83589.0,83587.0,0.239269]
[1741958311542,0.3,83589.0,83588.0,0.239268]
[1741958312140,0.3,83589.0,83587.0,0.239269]
[1741958312302,0.3,83589.0,83586.0,0.239274]
[1741958312504,0.539268,83589.0,83587.0,0.002]
[1741958312943,0.239268,83588.0,83587.0,0.002]
[1741958313145,0.239271,83588.0,83584.0,0.0121333]
[1741958313347,0.239274,83587.0,83584.0,0.2394433]
[1741958313984,0.239275,83586.0,83584.0,0.0001693]
[1741958314195,0.25124,83585.0,83584.0,0.0001693]
[1741958314394,0.25124,83585.0,83584.0,0.0021693]
[1741958314662,0.25124,83585.0,83584.0,0.0001693]
[1741958314868,0.27000633,83585.0,83584.0,0.0001693]
[1741958315068,0.27000633,83585.0,83584.0,0.0021693]
[1741958315329,0.03632781,83585.0,83584.0,0.0031693]
[1741958315532,0.03632781,83585.0,83584.0,0.2424493]
[1741958316008,0.03632781,83585.0,83584.0,0.2544133]
[1741958316209,0.03632781,83585.0,83584.0,0.2424493]
[1741958316887,0.03632781,83585.0,83584.0,0.2444493]
[1741958317088,0.01283932,84826.0,83598.0,0.239239]
[1741958317089,0.3,83600.0,83598.0,0.239239]
[1741958317407,0.3,83598.0,83597.0,0.239243]
[1741958317569,0.3,83598.0,83596.0,0.239243]
[1741958318006,0.31734548,83598.0,83597.0,0.251205]
[1741958318402,0.01734548,83598.0,83597.0,0.251205]
[1741958318608,0.003,83600.0,83599.0,0.239237]
[1741958318764,0.00899131,83601.0,83599.0,0.239237]
[1741958319127,0.3,83602.0,83600.0,0.239234]
[1741958319262,0.311961,83602.0,83597.0,0.239243]
[1741958319463,0.3,83600.0,83596.0,0.0493]
[1741958319777,0.3,83595.0,83592.0,0.239255]
[1741958320149,0.3,83595.0,83589.0,0.251228]
[1741958320347,0.3,83595.0,83594.0,0.251213]
[1741958320879,0.03718803,83600.0,83594.0,0.251213]
[1741958321181,0.03718803,83600.0,83599.0,0.239237]
[1741958321411,0.3,83599.0,83598.0,0.23924]
[1741958321622,0.3,83594.0,83592.0,0.239257]
[1741958321813,0.539261,83591.0,83588.0,0.0466]
[1741958322419,0.55802689,83591.0,83588.0,0.0466]
[1741958322618,0.239265,83589.0,83588.0,0.0466]
[1741958322837,0.011963,83587.0,83584.0,0.0001693]
[1741958323013,0.239272,83587.0,83584.0,0.0001693]
[1741958323220,0.239268,83588.0,83584.0,0.2394483]
[1741958323414,0.3,83589.0,83585.0,0.239274]
[1741958323636,0.239274,83587.0,83584.0,0.0001693]
[1741958324280,0.239268,83588.0,83584.0,0.0031693]
[1741958324483,0.3,83589.0,83587.0,0.239271]
[1741958324874,0.3,83589.0,83588.0,0.003]
[1741958325067,0.539265,83589.0,83588.0,0.003]
[1741958325277,0.3,83589.0,83586.0,0.239274]
[1741958325505,0.3,83589.0,83587.0,0.23927]
[1741958325623,0.3,83589.0,83587.0,0.242271]
[1741958325818,0.539268,83589.0,83587.0,0.003]
[1741958326027,0.3,83589.0,83587.0,0.239271]
[1741958326228,0.3,83589.0,83587.0,0.23927]
[1741958326431,0.3,83589.0,83586.0,0.003]
[1741958326683,0.239271,83587.0,83586.0,0.003]
[1741958326896,0.63694459,83587.0,83586.0,0.003]
[1741958327467,0.251228,83591.0,83586.0,0.003]
[1741958327468,0.011962,83595.0,83589.0,0.011963]
[1741958327797,0.3,83596.0,83591.0,0.011963]
[1741958327930,0.3,83596.0,83594.0,0.23925]
[1741958328136,0.3,83596.0,83595.0,0.239248]
[1741958328339,0.3,83596.0,83595.0,0.25121]
[1741958329454,0.3,83596.0,83595.0,0.239248]
[1741958330047,0.3,83598.0,83596.0,0.239245]
[1741958330631,0.31876546,83598.0,83597.0,0.239243]
[1741958331008,0.31876546,83598.0,83597.0,0.216243]
[1741958331648,0.31876546,83598.0,83597.0,0.239243]
[1741958331840,0.32076546,83598.0,83597.0,0.239243]
[1741958332383,0.32176546,83598.0,83597.0,0.239243]
[1741958333291,0.31976546,83598.0,83597.0,0.239243]
[1741958333574,0.32076546,83598.0,83596.0,0.239245]
[1741958333717,0.32076546,83598.0,83597.0,0.239243]
[1741958334552,0.31976546,83598.0,83597.0,0.239243]
[1741958335035,0.32076546,83598.0,83597.0,0.239243]
[1741958335268,0.31976546,83598.0,83597.0,0.239243]
[1741958335612,0.32076546,83598.0,83597.0,0.239243]
[1741958336849,0.32076546,83598.0,83594.0,0.239246]
[1741958337053,0.3,83596.0,83593.0,0.239253]
[1741958337359,0.3,83596.0,83595.0,0.239248]
[1741958338166,0.3,83596.0,83593.0,0.217253]
[1741958338786,0.539247,83596.0,83593.0,0.217253]
[1741958338996,0.3,83596.0,83593.0,0.011962]
[1741958339336,0.3,83596.0,83595.0,0.239248]
[1741958339488,0.3,83596.0,83595.0,0.25121]
[1741958339685,0.31876546,83598.0,83595.0,0.25121]
[1741958340070,0.001,83596.0,83595.0,0.25121]
[1741958340911,0.3,83596.0,83595.0,0.239248]
[1741958341107,0.239249,83595.0,83593.0,0.239253]
[1741958341312,0.3,83594.0,83593.0,0.239253]
[1741958341657,0.3,83594.0,83593.0,0.239254]
[1741958342155,0.3,83594.0,83593.0,0.251216]
[1741958342340,0.3,83595.0,83593.0,0.251216]
[1741958342626,0.3,83595.0,83594.0,0.239251]
[1741958342853,0.539249,83595.0,83592.0,0.239256]
[1741958343063,0.3,83595.0,83593.0,0.239253]
[1741958343264,0.3,83595.0,83594.0,0.239251]
[1741958343463,0.301339,83596.0,83595.0,0.239248]
[1741958343680,0.300339,83596.0,83595.0,0.239248]
[1741958344452,0.300339,83596.0,83593.0,0.239253]
[1741958344453,0.239249,83595.0,83593.0,0.239253]
[1741958344737,0.001,83595.0,83593.0,0.239253]
[1741958344941,0.240249,83595.0,83591.0,0.2513895]
[1741958345156,0.551219,83592.0,83591.0,0.0001695]
[1741958345412,0.239271,83588.0,83586.0,0.0441695]
[1741958345617,0.3,83587.0,83586.0,0.0441695]
[1741958345777,0.551234,83587.0,83586.0,0.0441695]
[1741958345971,0.551234,83587.0,83584.0,0.0001693]
[1741958346174,0.539277,83585.0,83584.0,0.0001693]
[1741958346598,0.55124,83585.0,83584.0,0.0001693]
[1741958346804,0.3,83585.0,83584.0,0.0001693]
[1741958347302,0.3,83585.0,83584.0,0.2394493]
[1741958347630,0.3,83585.0,83584.0,0.0001693]
[1741958347631,0.539277,83585.0,83584.0,0.0001693]
[1741958347835,0.539277,83585.0,83584.0,0.0021693]
[1741958348047,0.55124,83585.0,83584.0,0.0021693]
[1741958348421,0.57000721,83585.0,83584.0,0.0021693]
[1741958349040,0.57000721,83585.0,83584.0,0.0051693]
[1741958349836,0.31876721,83585.0,83584.0,0.0051693]
[1741958350039,0.31876721,83585.0,83584.0,0.2444493]
[1741958350454,0.31876721,83585.0,83584.0,0.2564133]
[1741958350647,0.31876721,83585.0,83584.0,0.2444493]
[1741958350844,0.31876721,83585.0,83584.0,0.0051693]
[1741958351215,0.31876721,83585.0,83584.0,0.2444493]
[1741958351850,0.31876721,83585.0,83584.0,0.2564133]
[1741958352051,0.01876721,83585.0,83584.0,0.3369133]
[1741958352271,0.01876721,83585.0,83584.0,0.3833133]
[1741958353585,0.01876721,83585.0,83584.0,0.3833133]
[1741958355157,0.01876721,83585.0,83584.0,0.1320693]
[1741958355355,0.31876721,83585.0,83584.0,0.0051693]
[1741958356303,0.01876721,83585.0,83584.0,0.0051693]
[1741958356708,0.03073021,83585.0,83584.0,0.0051693]
[1741958356914,0.27000721,83585.0,83584.0,0.0051693]
[1741958357543,0.25804421,83585.0,83584.0,0.0051693]
[1741958358099,0.27000721,83585.0,83584.0,0.0051693]
[1741958358337,0.01876721,83585.0,83584.0,0.0051693]
[1741958358462,0.01876721,83585.0,83584.0,0.2564133]
[1741958361571,0.539263,83590.0,83587.0,0.239269]
[1741958361803,0.239265,83589.0,83586.0,0.239273]
[1741958362047,0.539263,83590.0,83587.0,0.23927]
[1741958362297,0.311963,83590.0,83586.0,0.239273]
[1741958362505,0.239267,83589.0,83586.0,0.239273]
[1741958363110,0.3,83590.0,83587.0,0.001]
[1741958363311,0.000339,83596.0,83593.0,0.239253]
[1741958363515,0.01487985,83596.0,83587.0,0.001]
[1741958363714,0.25124,83585.0,83584.0,0.0001693]
[1741958363849,0.55124,83585.0,83584.0,0.0001693]
[1741958364430,0.57000754,83585.0,83584.0,0.0001693]
[1741958365351,0.57000754,83585.0,83584.0,0.0021693]
[1741958366383,0.57000754,83585.0,83584.0,0.0031693]
[1741958367058,0.31876754,83585.0,83584.0,0.2424493]
[1741958367258,0.31876754,83585.0,83584.0,0.2544133]
[1741958367462,0.31876754,83585.0,83584.0,0.0031693]
[1741958367664,0.57000754,83585.0,83584.0,0.0031693]
[1741958368523,0.3,83584.0,83581.0,0.220795]
[1741958368976,0.27000754,83585.0,83580.0,0.011964]
[1741958368977,0.01876754,83585.0,83584.0,0.330644]
[1741958369192,0.000339,83596.0,83584.0,0.330644]
[1741958369193,0.3,83593.0,83589.0,0.251228]
[1741958370234,0.000339,83595.0,83589.0,0.251228]
[1741958371830,0.551565,83590.0,83589.0,0.001]
[1741958372037,0.551565,83590.0,83589.0,0.002]
[1741958372236,0.31910548,83590.0,83589.0,0.241265]
[1741958372558,0.55836848,83590.0,83589.0,0.002]
[1741958372717,0.31910548,83590.0,83589.0,0.002]
[1741958372914,0.67767523,83590.0,83589.0,0.002]
[1741958373135,0.31910548,83590.0,83589.0,0.002]
[1741958373329,0.01910548,83590.0,83589.0,0.241265]
[1741958373554,0.000339,83590.0,83589.0,0.334928]
[1741958373914,0.000339,83590.0,83589.0,0.322965]
[1741958374119,0.000339,83590.0,83589.0,0.241265]
[1741958374406,0.000339,83590.0,83589.0,0.002]
[1741958376183,0.239602,83590.0,83589.0,0.002]
[1741958376582,0.000339,83590.0,83589.0,0.241265]
[1741958376786,0.000339,83590.0,83589.0,0.253228]
[1741958376998,0.000339,83590.0,83589.0,0.300728]
[1741958377391,0.000339,83590.0,83589.0,0.377428]
[1741958378272,0.000339,83590.0,83589.0,0.74182534]
[1741958378473,0.000339,83590.0,83589.0,0.74482534]
[1741958379540,0.01910208,83590.0,83589.0,0.74382534]
[1741958380142,0.01910208,83590.0,83589.0,0.74082534]
[1741958380350,0.01910208,83590.0,83589.0,0.74382534]
[1741958380509,0.01910208,83590.0,83589.0,0.74682534]
[1741958380944,0.02010208,83590.0,83589.0,0.75182534]
[1741958381711,0.02010208,83590.0,83589.0,0.74582534]
[1741958382065,0.02010208,83590.0,83589.0,0.75182534]
[1741958390352,0.3,83615.0,83614.0,0.239194]
[1741958391283,0.539197,83613.0,83609.0,0.239207]
[1741958391513,0.3,83613.0,83609.0,0.239207]
[1741958391626,0.3,83613.0,83611.0,0.239201]
[1741958392649,0.3,83614.0,83611.0,0.239201]
[1741958393162,0.3,83614.0,83610.0,0.251165]
[1741958393163,0.3,83614.0,83613.0,0.251156]
[1741958393595,0.31876196,83614.0,83613.0,0.251156]
[1741958393802,0.01876196,83614.0,83613.0,0.251156]
[1741958399242,0.3,83612.0,83611.0,0.239202]
[1741958399440,0.31876196,83614.0,83612.0,0.239199]
[1741958399611,0.31876196,83614.0,83613.0,0.239197]
[1741958400628,0.01876196,83614.0,83612.0,0.239199]
[1741958400835,0.01876196,83614.0,83613.0,0.251156]
[1741958401044,0.01876196,83614.0,83613.0,0.239197]
[1741958401478,0.01876196,83614.0,83613.0,0.251156]
[1741958402072,0.01910076,83614.0,83613.0,0.251156]
[1741958404561,0.01910076,83614.0,83613.0,0.330856]
[1741958404781,8e-07,83614.0,83613.0,0.74565334]
[1741958404996,3.2e-07,83625.0,83624.0,0.251123]
[1741958405208,3.2e-07,83625.0,83624.0,0.88368034]
[1741958405769,3.2e-07,83625.0,83624.0,0.88372034]
[1741958406238,3.2e-07,83625.0,83624.0,0.74832034]
[1741958406442,3.2e-07,83625.0,83624.0,0.88372034]
[1741958407365,0.00100032,83625.0,83624.0,0.88872034]
[1741958407561,0.00100032,83625.0,83624.0,0.89472034]
[1741958407761,3.2e-07,83625.0,83624.0,0.88972034]
[1741958407961,3.2e-07,83625.0,83624.0,0.89472034]
[1741958408130,0.00100032,83625.0,83624.0,0.88872034]
[1741958408327,0.00100032,83625.0,83624.0,0.91840583]
[1741958409639,0.00100032,83625.0,83624.0,0.91824583]
[1741958411404,3.2e-07,83625.0,83624.0,0.91824583]
[1741958412724,3.2e-07,83625.0,83624.0,1.61354583]
[1741958414314,9.2e-07,83625.0,83624.0,1.61354583]
[1741958415693,0.01646249,83644.0,83627.0,0.36539642]
[1741958415856,0.3,83669.0,83667.0,0.239042]
[1741958416036,0.3,83669.0,83667.0,0.250994]
[1741958416244,0.3160566,83669.0,83667.0,0.250994]
[1741958416443,0.3160566,83669.0,83668.0,0.23904]
[1741958417268,0.3170566,83669.0,83668.0,0.23904]
[1741958417466,0.3170566,83669.0,83668.0,0.250992]
[1741958417637,0.0160566,83669.0,83668.0,0.250992]
[1741958417837,0.000339,83674.0,83673.0,0.249976]
[1741958418421,0.000339,83674.0,83667.0,0.250994]
[1741958418422,0.011951,83672.0,83664.0,0.011952]
[1741958418749,0.3,83668.0,83667.0,0.239042]
[1741958418950,0.3,83668.0,83667.0,0.250994]
[1741958419511,0.02050307,83674.0,83673.0,0.239025]
[1741958419915,0.02050307,83674.0,83673.0,0.250976]
[1741958420253,0.02050307,83674.0,83672.0,0.250978]
[1741958420607,0.32050307,83674.0,83673.0,0.239025]
[1741958421012,0.3,83670.0,83668.0,0.239037]
[1741958421217,0.011951,83673.0,83669.0,0.239037]
[1741958421421,0.3,83671.0,83669.0,0.239037]
[1741958421644,0.3,83671.0,83663.0,0.251004]
[1741958421799,0.239034,83670.0,83664.0,0.239048]
[1741958421998,0.3,83671.0,83669.0,0.239037]
[1741958422201,0.3,83671.0,83670.0,0.239034]
[1741958422397,0.3,83671.0,83669.0,0.239037]
[1741958422602,0.3,83672.0,83670.0,0.239034]
[1741958423006,0.3,83672.0,83671.0,0.239031]
[1741958423631,0.3,83672.0,83671.0,0.250982]
[1741958423854,0.32050307,83674.0,83672.0,0.239027]
[1741958424614,0.32050307,83674.0,83673.0,0.239025]
[1741958425439,0.32050307,83674.0,83672.0,0.239027]
[1741958425665,0.3,83668.0,83664.0,0.011952]
[1741958425858,0.3,83668.0,83666.0,0.239044]
[1741958426081,0.3,83668.0,83667.0,0.239042]
[1741958426379,0.3,83668.0,83667.0,0.250994]
[1741958427240,0.32050307,83674.0,83672.0,0.239026]
[1741958427437,0.32050307,83674.0,83673.0,0.239025]
[1741958427656,0.32050307,83674.0,83673.0,0.001]
[1741958427858,0.57147607,83674.0,83673.0,0.001]
[1741958428053,0.3,83670.0,83667.0,0.241042]
[1741958428386,0.3,83670.0,83669.0,0.239037]
[1741958428611,0.3,83670.0,83669.0,0.250988]
[1741958429295,0.3,83672.0,83670.0,0.239033]
[1741958430180,0.02050307,83674.0,83673.0,0.239025]
[1741958430576,0.02050307,83674.0,83673.0,0.250976]
[1741958430776,0.02050307,83674.0,83672.0,0.239028]
[1741958430981,0.32050307,83674.0,83673.0,0.250976]
[1741958431523,0.32050307,83674.0,83672.0,0.239028]
[1741958431741,0.32050307,83674.0,83673.0,0.001]
[1741958432149,0.25952507,83674.0,83673.0,0.001]
[1741958432334,0.25952507,83674.0,83672.0,0.239028]
[1741958432560,0.02050307,83674.0,83672.0,0.239028]
[1741958432751,0.25952607,83674.0,83671.0,0.250981]
[1741958433361,0.02050307,83674.0,83672.0,0.239027]
[1741958433888,0.25952507,83674.0,83672.0,0.001]
[1741958434027,0.02050307,83674.0,83672.0,0.240027]
[1741958434361,0.25952607,83674.0,83672.0,0.001]
[1741958434791,0.539025,83673.0,83672.0,0.001]
[1741958435328,0.550976,83673.0,83672.0,0.001]
[1741958435750,0.3,83665.0,83663.0,0.239054]
[1741958436077,0.3,83665.0,83664.0,0.239051]
[1741958436731,0.3,83665.0,83663.0,0.239054]
[1741958437004,0.3,83666.0,83664.0,0.239051]
[1741958437209,0.011953,83660.0,83654.0,0.239077]
[1741958437434,0.551036,83653.0,83646.0,0.239102]
[1741958437733,0.3,83653.0,83649.0,0.011954]
[1741958437890,0.3,83653.0,83651.0,0.239086]
[1741958438094,0.539082,83653.0,83650.0,0.239088]
[1741958438299,0.539082,83653.0,83645.0,0.6953]
[1741958438300,0.011956,83639.0,83630.0,0.37735342]
[1741958438662,0.239163,83625.0,83620.0,0.251133]
[1741958438840,0.239163,83625.0,83620.0,0.239175]
[1741958438982,0.3,83624.0,83622.0,0.23917]
[1741958439183,0.3,83624.0,83622.0,0.239171]
[1741958439386,0.3,83624.0,83623.0,0.239168]
[1741958439583,0.32031495,83624.0,83623.0,0.251126]
[1741958439790,0.32415772,83638.0,83637.0,0.251084]
[1741958439989,0.32415772,83638.0,83635.0,0.239134]
[1741958439990,0.3,83638.0,83635.0,0.239134]
[1741958440362,0.32088187,83638.0,83636.0,0.23913]
[1741958440569,0.32088187,83638.0,83637.0,0.251084]
[1741958441144,0.02088187,83638.0,83637.0,0.251084]
[1741958441353,0.3,83641.0,83639.0,0.23912]
[1741958441491,0.3,83641.0,83640.0,0.23912]
[1741958442317,0.23911,83644.0,83640.0,0.23912]
[1741958442573,0.3,83644.0,83640.0,0.251076]
[1741958442870,0.539109,83644.0,83640.0,0.229076]
[1741958443016,0.239111,83643.0,83640.0,0.21712]
[1741958443216,0.32012092,83644.0,83640.0,0.21712]
[1741958443613,0.02012092,83644.0,83640.0,0.229076]
[1741958443868,0.3,83645.0,83642.0,0.011955]
[1741958444175,0.3,83645.0,83644.0,0.251063]
[1741958444499,0.32086492,83645.0,83644.0,0.250063]
[1741958444903,0.02086492,83645.0,83644.0,0.238108]
[1741958445211,0.539098,83648.0,83645.0,0.239103]
[1741958445363,0.3,83648.0,83646.0,0.239101]
[1741958445571,0.32061624,83648.0,83647.0,0.251055]
[1741958445794,0.02061624,83648.0,83647.0,0.251055]
[1741958445993,0.3,83652.0,83649.0,0.239092]
[1741958446198,0.3,83652.0,83651.0,0.251042]
[1741958447016,0.13592,83653.0,83652.0,0.251039]
[1741958447180,0.76825747,83661.0,83660.0,0.251015]
[1741958447381,0.136379,83674.0,83669.0,0.250988]
[1741958447576,0.3,83668.0,83665.0,0.239047]
[1741958447786,0.3,83668.0,83663.0,0.251005]
[1741958447787,0.53904,83668.0,83663.0,0.251005]
[1741958447997,0.239049,83665.0,83661.0,0.23906]
[1741958448203,0.239049,83665.0,83651.0,0.001]
[1741958448204,0.011952,83663.0,83654.0,0.239077]
[1741958448407,0.23908,83654.0,83651.0,0.011954]
[1741958448658,0.239072,83657.0,83650.0,0.011954]
[1741958448900,0.239068,83659.0,83654.0,0.23908]
[1741958449042,0.53687675,83664.0,83655.0,0.011953]
[1741958449348,0.239057,83662.0,83661.0,0.002]
[1741958450040,0.3,83661.0,83659.0,0.235065]
[1741958450240,0.3,83661.0,83660.0,0.239062]
[1741958451276,0.311952,83664.0,83659.0,0.001]
[1741958451483,0.011952,83664.0,83659.0,0.001]
[1741958451681,0.3,83661.0,83660.0,0.001]
[1741958452294,0.3,83661.0,83660.0,0.002]
[1741958452503,0.3,83661.0,83660.0,0.001]
[1741958452707,0.239054,83663.0,83660.0,0.001]
[1741958452899,0.3,83661.0,83660.0,0.001]
[1741958454122,0.539054,83663.0,83660.0,0.239062]
[1741958454318,0.539054,83663.0,83661.0,0.239059]
[1741958454519,0.3,83661.0,83658.0,0.251018]
[1741958454683,0.539054,83663.0,83660.0,0.001]
[1741958454684,0.239054,83663.0,83660.0,0.001]
[1741958455040,0.239054,83663.0,83660.0,0.24006]
[1741958455419,0.239054,83663.0,83661.0,0.239059]
[1741958455617,0.239054,83663.0,83659.0,0.251018]
[1741958455797,0.239054,83663.0,83659.0,0.011953]
[1741958456006,0.239054,83663.0,83660.0,0.23906]
[1741958456355,0.251001,83665.0,83662.0,0.239057]
[1741958456562,0.239053,83664.0,83661.0,0.239059]
[1741958456862,0.239053,83664.0,83660.0,0.251015]
[1741958457065,0.239055,83663.0,83660.0,0.229015]
[1741958457226,0.011952,83665.0,83661.0,0.239058]
[1741958457227,0.01454085,83665.0,83661.0,0.239058]
[1741958457430,0.01454085,83665.0,83661.0,0.011953]
[1741958457617,0.239052,83664.0,83660.0,0.251013]
[1741958457839,0.239046,83666.0,83663.0,0.251004]
[1741958458048,0.3,83667.0,83666.0,0.250996]
[1741958459013,0.02054576,83670.0,83669.0,0.250988]
[1741958459213,0.01454085,83673.0,83672.0,0.239026]
[1741958459976,0.01454085,83673.0,83672.0,0.239028]
[1741958460183,0.3,83670.0,83668.0,0.239039]
[1741958460390,0.3,83670.0,83662.0,0.011952]
[1741958460391,0.011951,83669.0,83662.0,0.011952]
[1741958460576,0.011953,83660.0,83653.0,0.251034]
[1741958460777,0.011953,83658.0,83655.0,0.239076]
[1741958460976,0.239062,83660.0,83657.0,0.23907]
[1741958461304,0.251013,83661.0,83658.0,0.239068]
[1741958461560,0.3,83660.0,83659.0,0.239065]
[1741958462177,0.3,83660.0,83659.0,0.251018]
[1741958462614,0.3,83664.0,83663.0,0.251006]
[1741958463111,0.3,83664.0,83661.0,0.239059]
[1741958463462,0.539053,83664.0,83661.0,0.239059]
[1741958463669,0.01454085,83666.0,83665.0,0.239048]
[1741958464094,0.01454085,83666.0,83663.0,0.011952]
[1741958464493,0.539042,83667.0,83664.0,0.239051]
[1741958464694,0.239048,83665.0,83662.0,0.239054]
[1741958464871,0.239052,83664.0,83661.0,0.239059]
[1741958465212,0.239052,83664.0,83661.0,0.217059]
[1741958465559,0.239042,83668.0,83663.0,0.239051]
[1741958465560,0.311952,83668.0,83663.0,0.239051]
[1741958465760,0.3,83665.0,83663.0,0.239051]
[1741958465973,0.3,83665.0,83664.0,0.00881436]
[1741958466411,0.3,83665.0,83664.0,0.25981736]
[1741958466825,0.01454085,83670.0,83666.0,0.239045]
[1741958467033,0.02649185,83670.0,83665.0,0.239048]
[1741958467480,0.3,83667.0,83664.0,0.25981636]
[1741958467729,0.3,83667.0,83665.0,0.239048]
[1741958468379,0.3,83669.0,83666.0,0.239045]
[1741958468737,0.3,83669.0,83668.0,0.23904]
[1741958468995,0.3,83669.0,83668.0,0.299992]
[1741958469199,0.02058063,83673.0,83668.0,0.299992]
[1741958469200,0.0003386,83673.0,83672.0,0.250979]
[1741958469953,0.0003386,83673.0,83672.0,0.330879]
[1741958473514,0.0003386,83673.0,83672.0,0.34366176]
[1741958473958,0.0003386,83673.0,83672.0,0.34766176]
[1741958474734,0.3,83689.0,83687.0,0.011949]
[1741958475055,0.3,83689.0,83688.0,0.011949]
[1741958475235,0.3,83689.0,83688.0,0.250931]
[1741958476133,0.3,83692.0,83691.0,0.238973]
[1741958476482,0.3,83692.0,83689.0,0.250926]
[1741958476709,0.538971,83692.0,83691.0,0.00870774]
[1741958476920,0.538971,83692.0,83690.0,0.238976]
[1741958477124,0.538971,83692.0,83691.0,0.00870774]
[1741958477409,0.3,83690.0,83688.0,0.238982]
[1741958478140,0.3,83690.0,83689.0,0.23898]
[1741958478558,0.02103776,83692.0,83691.0,0.238974]
[1741958478876,0.02003776,83692.0,83691.0,0.238974]
[1741958479262,0.0003388,83695.0,83692.0,0.238969]
[1741958479462,0.0003388,83695.0,83691.0,0.238974]
[1741958479663,0.0003388,83695.0,83694.0,0.238965]
[1741958480109,0.01883212,83695.0,83694.0,0.238965]
[1741958480307,0.01883212,83695.0,83694.0,0.24910824]
[1741958480712,0.01883212,83695.0,83694.0,0.26105624]
[1741958480910,0.01883212,83695.0,83694.0,0.26005624]
[1741958481112,0.0003388,83695.0,83694.0,0.26005624]
[1741958482268,0.0003388,83695.0,83694.0,0.33865624]
[1741958482680,0.0003388,83695.0,83694.0,0.34265624]
[1741958483035,0.0003388,83695.0,83694.0,0.34665624]
[1741958483253,0.0003388,83695.0,83694.0,0.34265624]
[1741958483656,0.0003388,83695.0,83694.0,0.34665624]
[1741958483861,0.0003388,83695.0,83694.0,0.33865624]
[1741958484207,0.0003388,83695.0,83694.0,0.34965624]
[1741958484820,0.0003388,83695.0,83694.0,0.34465624]
[1741958484944,0.0003388,83695.0,83694.0,0.35065624]
[1741958486995,0.0003388,83695.0,83694.0,0.39995624]
[1741958487266,1.0003388,83695.0,83694.0,0.39995624]
[1741958494702,1.0003388,83695.0,83694.0,0.32135624]
[1741958495164,1.0003388,83695.0,83694.0,0.27205624]
[1741958496069,1.0003388,83695.0,83694.0,0.26605624]
[1741958496263,1.0003388,83695.0,83694.0,0.27105624]
[1741958496469,1.2393008,83695.0,83694.0,0.02114324]
[1741958496667,1.0003388,83695.0,83694.0,0.02114324]
[1741958496889,1.0003388,83695.0,83694.0,0.01514324]
[1741958497093,1.2393008,83695.0,83694.0,0.01014324]
[1741958497267,1.0003388,83695.0,83694.0,0.01514324]
[1741958497477,1.0003388,83695.0,83694.0,0.259913]
[1741958497715,1.0003388,83695.0,83694.0,0.26505624]
[1741958497920,1.0003388,83695.0,83694.0,0.26105624]
[1741958498092,1.0003388,83695.0,83694.0,0.26305624]
[1741958499069,1.0003388,83695.0,83694.0,0.34115624]
[1741958499403,1.0003388,83695.0,83694.0,0.34315624]
[1741958500233,1.0003388,83695.0,83694.0,0.34149464]
[1741958500390,1.0003388,83695.0,83694.0,0.34649464]
[1741958501420,1.0003388,83695.0,83694.0,0.34449464]
[1741958501752,1.0003388,83695.0,83694.0,0.34649464]
[1741958502250,1.0003388,83695.0,83694.0,0.34449464]
[1741958502411,1.0003388,83695.0,83694.0,0.35049464]
[1741958505399,1.0003388,83695.0,83694.0,0.27239464]
[1741958507207,1.0003388,83695.0,83694.0,0.26639464]
[1741958507408,1.0003388,83695.0,83694.0,0.26139464]
[1741958507615,1.0003388,83695.0,83694.0,0.25844664]
[1741958508336,1.5512488,83695.0,83694.0,0.01948164]
[1741958508474,1.5512488,83695.0,83694.0,0.01448164]
[1741958508677,1.5512488,83695.0,83694.0,0.0043384]
[1741958508904,1.5512488,83695.0,83694.0,0.0093384]
[1741958509418,1.5512488,83695.0,83694.0,0.0053384]